[Event "DVM U12 2021-22"]
[Site "Naumburg"]
[Date "2022.03.27"]
[Round "5"]
[White "Gulamzada, Elmir"]
[Black "Zobel, Christian"]
[Result "0-1"]
[ECO "B00"]
[WhiteElo "1291"]
[BlackElo "1547"]
[Annotator "NA"]
[PlyCount "108"]
[EventDate "2022.03.25"]
[EventType "team-tourn"]
[EventRounds "7"]
[EventCountry "GER"]
[SourceTitle "playchess.com"]
[Source "ChessBase"]
[SourceQuality "1"]
[TimeControl "40/5400+30:1800+30"]

1. e4 {[%emt 0:00:06]} b6 {[%emt 0:00:21]} 2. d4 {[%emt 0:00:26]} Bb7 {[%emt 0:00:11]} 3. Nc3 {[%emt 0:00:53]} e6 {[%emt 0:00:25]} 4. Bc4 {[%emt 0:01:06]} Bb4 {[%emt 0:02:02]} 5. Nge2 {[%emt 0:02:29]} Bxe4 {[%emt 0:01:37]} 6. O-O {[%emt 0:03:10]} Bb7 {[%emt 0:00:50]} 7. Bf4 {[%emt 0:03:44]} Bxc3 {[%emt 0:05:33]} 8. Nxc3 {[%emt 0:00:50]} Nf6 {[%emt 0:00:13]} 9. Re1 {[%emt 0:03:29]} O-O {[%emt 0:01:55]} 10. Qd3 {[%emt 0:03:34]} d5 {[%emt 0:06:23]} 11. Bb3 {[%emt 0:00:25]} c5 {[%emt 0:02:07]} 12. dxc5 {[%emt 0:01:17]} bxc5 {[%emt 0:00:07]} 13. Qg3 {[%emt 0:03:04]} Nh5 {[%emt 0:01:54]} 14. Qg4 {[%emt 0:01:59]} Nxf4 {[%emt 0:00:12]} 15. Qxf4 {[%emt 0:00:20]} Nc6 {[%emt 0:03:19]} 16. Rad1 {[%emt 0:05:24]} Qb8 {[%emt 0:11:14]} 17. Qxb8 {[%emt 0:05:03]} Raxb8 {[%emt 0:00:33]} 18. Ba4 {[%emt 0:02:25]} Nd4 {[%emt 0:03:30]} 19. Bb5 {[%emt 0:01:03]} Nxc2 {[%emt 0:00:33]} 20. Re2 {[%emt 0:02:32]} Nd4 {[%emt 0:00:17]} 21. Red2 {[%emt 0:00:33]} Nxb5 {[%emt 0:04:47]} 22. Nxb5 {[%emt 0:00:56]} a6 {[%emt 0:00:22]} 23. Nc3 Bc6 {[%emt 0:03:55]} 24. b3 {[%emt 0:02:31]} Rb4 {[%emt 0:01:42]} 25. Rc2 {[%emt 0:01:03]} c4 {[%emt 0:02:59]} 26. Ne2 {[%emt 0:05:00]} Bb5 {[%emt 0:03:28]} 27. Nd4 {[%emt 0:02:35]} cxb3 {[%emt 0:01:30]} 28. Nxb3 {[%emt 0:00:48]} Ba4 {[%emt 0:00:51]} 29. Rb2 {[%emt 0:01:33]} Rfb8 {[%emt 0:02:36]} 30. Rc1 {[%emt 0:00:51]} Kf8 {[%emt 0:00:27]} 31. Rc3 {[%emt 0:00:23]} Bxb3 {[%emt 0:01:14]} 32. axb3 {[%emt 0:00:06]} a5 {[%emt 0:00:08]} 33. Kf1 {[%emt 0:01:25]} a4 {[%emt 0:00:46]} 34. Ke2 {[%emt 0:00:06]} a3 {[%emt 0:01:03]} 35. Ra2 {[%emt 0:00:20]} Rxb3 {[%emt 0:00:11]} 36. Rc1 {[%emt 0:00:27]} Rb2+ {[%emt 0:00:11]} 37. Rxb2 {[%emt 0:00:21]} axb2 {[%emt 0:00:05]} 38. Rb1 {[%emt 0:00:06]} Ke7 {[%emt 0:00:12]} 39. Kd3 {[%emt 0:00:48]} Kd6 {[%emt 0:00:05]} 40. Kd4 {[%emt 0:00:32]} e5+ {[%emt 0:00:40]} 41. Kd3 {[%emt 0:30:09]} Kc5 {[%emt 0:30:08]} 42. f3 {[%emt 0:00:43]} f5 {[%emt 0:00:06]} 43. Kc3 {[%emt 0:00:56]} d4+ {[%emt 0:00:10]} 44. Kd3 {[%emt 0:00:14]} Kd5 {[%emt 0:00:24]} 45. g3 {[%emt 0:00:38]} e4+ {[%emt 0:00:06]} 46. fxe4+ {[%emt 0:00:26]} fxe4+ {[%emt 0:00:05]} 47. Kd2 {[%emt 0:00:20]} Kc4 {[%emt 0:00:05]} 48. Kc2 {[%emt 0:00:14]} d3+ {[%emt 0:00:05]} 49. Kd2 {[%emt 0:00:13]} Kd4 {[%emt 0:00:04]} 50. Kd1 {[%emt 0:00:23]} Kc3 {[%emt 0:00:09]} 51. g4 {[%emt 0:00:23]} e3 {[%emt 0:00:03]} 52. g5 {[%emt 0:00:13]} e2+ {[%emt 0:00:24]} 53. Ke1 {[%emt 0:00:15]} Rf8 {[%emt 0:00:05]} 54. Rxb2 {[%emt 0:00:24]} Rf1# 0-1

[Event "DVM U12 2021-22"]
[Site "Naumburg"]
[Date "2022.03.27"]
[Round "5"]
[White "Roth, Andreas Christian"]
[Black "Streich, Alexander"]
[Result "1-0"]
[ECO "D02"]
[WhiteElo "1254"]
[BlackElo "1129"]
[Annotator "NA"]
[PlyCount "99"]
[EventDate "2022.03.25"]
[EventType "team-tourn"]
[EventRounds "7"]
[EventCountry "GER"]
[SourceTitle "playchess.com"]
[Source "ChessBase"]
[SourceQuality "1"]
[TimeControl "40/5400+30:1800+30"]

1. d4 {[%emt 0:00:03]} d5 {[%emt 0:00:12]} 2. Nf3 {[%emt 0:00:08]} Nc6 {[%emt 0:00:17]} 3. c4 {[%emt 0:00:32]} dxc4 {[%emt 0:00:24]} 4. d5 {[%emt 0:01:10]} Nb4 {[%emt 0:00:27]} 5. Qa4+ {[%emt 0:00:29]} Bd7 {[%emt 0:00:34]} 6. Qxb4 {[%emt 0:00:28]} b5 {[%emt 0:00:46]} 7. e4 {[%emt 0:03:16]} e5 {[%emt 0:00:19]} 8. Qc3 {[%emt 0:02:40]} f6 {[%emt 0:00:23]} 9. Be2 {[%emt 0:01:45]} a5 {[%emt 0:00:18]} 10. O-O {[%emt 0:02:11]} Nh6 {[%emt 0:00:20]} 11. b3 {[%emt 0:04:30]} Bg4 {[%emt 0:00:31]} 12. Nbd2 {[%emt 0:04:17]} Bb4 {[%emt 0:00:50]} 13. Qc2 {[%emt 0:02:05]} c6 {[%emt 0:00:38]} 14. a3 {[%emt 0:03:36]} Bc5 {[%emt 0:00:23]} 15. bxc4 {[%emt 0:01:55]} g5 {[%emt 0:01:01]} 16. Bb2 {[%emt 0:07:48]} Qd7 {[%emt 0:00:23]} 17. cxb5 {[%emt 0:03:23]} Bxf3 {[%emt 0:00:19]} 18. Bxf3 {[%emt 0:03:25]} g4 {[%emt 0:00:29]} 19. Be2 {[%emt 0:03:06]} g3 {[%emt 0:00:44]} 20. Qxc5 {[%emt 0:05:59]} gxh2+ {[%emt 0:00:13]} 21. Kxh2 {[%emt 0:00:44]} Ng4+ {[%emt 0:00:24]} 22. Bxg4 {[%emt 0:01:12]} Qxg4 {[%emt 0:00:10]} 23. Qxc6+ {[%emt 0:00:49]} Kf7 {[%emt 0:00:09]} 24. Qe6+ {[%emt 0:00:10]} Qxe6 {[%emt 0:00:57]} 25. dxe6+ {[%emt 0:00:13]} Kxe6 {[%emt 0:00:06]} 26. Rac1 {[%emt 0:01:17]} Rag8 {[%emt 0:00:08]} 27. g3 {[%emt 0:01:21]} h5 {[%emt 0:00:06]} 28. Rg1 {[%emt 0:01:05]} h4 {[%emt 0:00:20]} 29. g4 {[%emt 0:01:49]} Rd8 {[%emt 0:00:49]} 30. Nb3 {[%emt 0:02:27]} a4 {[%emt 0:00:45]} 31. Nc5+ {[%emt 0:01:59]} Kf7 {[%emt 0:00:24]} 32. Nxa4 {[%emt 0:01:44]} Rd2 {[%emt 0:00:53]} 33. Rgf1 {[%emt 0:02:26]} Re2 {[%emt 0:00:24]} 34. Rc4 {[%emt 0:01:19]} f5 {[%emt 0:00:20]} 35. exf5 {[%emt 0:00:42]} e4 {[%emt 0:00:24]} 36. Bxh8 {[%emt 0:00:20]} e3 {[%emt 0:00:07]} 37. Bd4 {[%emt 0:00:51]} h3 {[%emt 0:00:09]} 38. Bxe3 {[%emt 0:00:33]} Kf6 {[%emt 0:00:58]} 39. Kxh3 {[%emt 0:00:34]} Rxe3+ {[%emt 0:00:16]} 40. fxe3 {[%emt 0:00:20]} Kg5 {[%emt 0:00:16]} 41. Kg3 {[%emt 0:30:44]} Kf6 {[%emt 0:30:15]} 42. Rc5 {[%emt 0:00:41]} Kg5 {[%emt 0:00:22]} 43. Rh1 {[%emt 0:00:48]} Kf6 {[%emt 0:00:10]} 44. Rh6+ {[%emt 0:00:02]} Kg5 {[%emt 0:00:30]} 45. f6+ {[%emt 0:00:47]} Kxh6 {[%emt 0:00:16]} 46. f7 {[%emt 0:00:28]} Kg7 {[%emt 0:00:31]} 47. f8=Q+ {[%emt 0:00:56]} Kh7 {[%emt 0:00:16]} 48. Qd6 {[%emt 0:00:22]} Kg7 {[%emt 0:00:17]} 49. Rc7+ {[%emt 0:00:12]} Kg8 50. Qd8# {[%emt 0:00:23]} 1-0

[Event "DVM U12 2021-22"]
[Site "Naumburg"]
[Date "2022.03.27"]
[Round "5"]
[White "Pimenov, Danil"]
[Black "Detjen, Mattes"]
[Result "1-0"]
[ECO "C55"]
[WhiteElo "1227"]
[BlackElo "1124"]
[Annotator "NA"]
[PlyCount "82"]
[EventDate "2022.03.25"]
[EventType "team-tourn"]
[EventRounds "7"]
[EventCountry "GER"]
[SourceTitle "playchess.com"]
[Source "ChessBase"]
[SourceQuality "1"]
[TimeControl "40/5400+30:1800+30"]

1. e4 {[%emt 0:00:04]} e5 {[%emt 0:00:06]} 2. Nf3 {[%emt 0:00:10]} Nc6 {[%emt 0:00:09]} 3. d4 {[%emt 0:00:10]} exd4 {[%emt 0:00:20]} 4. Bc4 {[%emt 0:00:07]} Nf6 {[%emt 0:01:22]} 5. e5 {[%emt 0:00:21]} Ne4 {[%emt 0:04:55]} 6. O-O {[%emt 0:01:47]} d5 {[%emt 0:02:54]} 7. Bb5 {[%emt 0:00:22]} Bd7 {[%emt 0:00:53]} 8. Bxc6 {[%emt 0:00:37]} Bxc6 {[%emt 0:02:44]} 9. Nxd4 {[%emt 0:00:18]} Qd7 {[%emt 0:05:09]} 10. f3 {[%emt 0:02:22]} Nc5 {[%emt 0:02:50]} 11. Be3 {[%emt 0:01:21]} Ne6 {[%emt 0:02:54]} 12. Nd2 {[%emt 0:01:10]} Bc5 {[%emt 0:01:28]} 13. N2b3 {[%emt 0:00:57]} Bb6 {[%emt 0:02:22]} 14. f4 {[%emt 0:01:23]} O-O {[%emt 0:05:26]} 15. f5 {[%emt 0:01:03]} Nxd4 {[%emt 0:01:29]} 16. Bxd4 {[%emt 0:00:26]} Bxd4+ {[%emt 0:02:38]} 17. Nxd4 {[%emt 0:00:32]} Rae8 {[%emt 0:02:29]} 18. Qe1 {[%emt 0:00:53]} Re7 {[%emt 0:05:45]} 19. Qg3 {[%emt 0:01:47]} f6 {[%emt 0:04:05]} 20. e6 {[%emt 0:00:49]} Qe8 {[%emt 0:02:49]} 21. Rf4 {[%emt 0:01:38]} b6 {[%emt 0:04:30]} 22. b4 {[%emt 0:04:21]} Bb7 {[%emt 0:02:24]} 23. b5 {[%emt 0:05:30]} c5 {[%emt 0:00:56]} 24. bxc6 {[%emt 0:00:23]} Bxc6 {[%emt 0:00:12]} 25. Rf3 {[%emt 0:03:18]} Bb7 {[%emt 0:04:36]} 26. a4 {[%emt 0:01:45]} Qh5 {[%emt 0:03:56]} 27. Qd6 {[%emt 0:01:15]} Rfe8 {[%emt 0:03:43]} 28. Raa3 {[%emt 0:02:00]} Qh4 {[%emt 0:03:53]} 29. Qb4 {[%emt 0:02:51]} Rc7 {[%emt 0:02:00]} 30. Qd2 {[%emt 0:03:09]} Ba6 {[%emt 0:03:03]} 31. Rf4 {[%emt 0:01:32]} Qg5 {[%emt 0:01:28]} 32. Rg3 {[%emt 0:01:20]} Qh6 {[%emt 0:00:13]} 33. c3 {[%emt 0:03:56]} Rc4 {[%emt 0:01:59]} 34. Rh3 {[%emt 0:01:23]} Qg5 {[%emt 0:00:23]} 35. g4 {[%emt 0:00:33]} g6 {[%emt 0:03:22]} 36. Kf2 {[%emt 0:14:56]} Rxa4 {[%emt 0:03:12]} 37. Kg3 {[%emt 0:01:06]} Bc4 {[%emt 0:02:41]} 38. Nf3 {[%emt 0:01:02]} Ra2 {[%emt 0:03:59]} 39. Qd4 {[%emt 0:02:54]} Bf1 {[%emt 0:01:12]} 40. Nxg5 {[%emt 0:00:44]} Bxh3 {[%emt 0:02:19]} 41. Nxh3 {[%emt 0:30:16]} g5 {[%emt 0:32:01]} 1-0

[Event "DVM U12 2021-22"]
[Site "Naumburg"]
[Date "2022.03.27"]
[Round "5"]
[White "Moldovan, Tudor"]
[Black "Kalinin, Alexey"]
[Result "1-0"]
[ECO "D02"]
[WhiteElo "1219"]
[BlackElo "1341"]
[Annotator "NA"]
[PlyCount "39"]
[EventDate "2022.03.25"]
[EventType "team-tourn"]
[EventRounds "7"]
[EventCountry "GER"]
[SourceTitle "playchess.com"]
[Source "ChessBase"]
[SourceQuality "1"]
[TimeControl "40/5400+30:1800+30"]

1. d4 {[%emt 0:00:05]} d5 {[%emt 0:00:16]} 2. Nf3 {[%emt 0:00:05]} e6 {[%emt 0:00:40]} 3. e3 {[%emt 0:00:06]} f5 {[%emt 0:00:32]} 4. Bd3 {[%emt 0:00:11]} Nf6 {[%emt 0:00:38]} 5. Nbd2 {[%emt 0:00:11]} Bd6 {[%emt 0:01:02]} 6. b3 {[%emt 0:00:11]} O-O {[%emt 0:00:51]} 7. Bb2 {[%emt 0:00:18]} b6 {[%emt 0:00:56]} 8. Ne5 {[%emt 0:00:38]} Bb7 {[%emt 0:01:09]} 9. O-O {[%emt 0:00:40]} Nbd7 {[%emt 0:01:06]} 10. f4 {[%emt 0:00:18]} Rc8 {[%emt 0:01:20]} 11. Rf3 {[%emt 0:01:24]} Ne4 {[%emt 0:00:43]} 12. Rh3 {[%emt 0:00:45]} Ndf6 {[%emt 0:00:59]} 13. c4 {[%emt 0:01:41]} c6 {[%emt 0:00:34]} 14. Rc1 {[%emt 0:00:48]} Re8 {[%emt 0:09:36]} 15. Nxe4 {[%emt 0:05:23]} Nxe4 {[%emt 0:01:50]} 16. Bxe4 {[%emt 0:00:50]} fxe4 {[%emt 0:02:05]} 17. Qh5 {[%emt 0:02:23]} h6 {[%emt 0:22:09]} 18. Qf7+ {[%emt 0:10:02]} Kh7 {[%emt 0:00:31]} 19. Rxh6+ {[%emt 0:00:23]} Kxh6 {[%emt 0:00:38]} 20. Qg6# 1-0

[Event "DVM U12 2021-22"]
[Site "Naumburg"]
[Date "2022.03.27"]
[Round "5"]
[White "Aaron Joel N"]
[Black "Börner, Eric"]
[Result "0-1"]
[ECO "C51"]
[WhiteElo "1197"]
[BlackElo "1134"]
[Annotator "NA"]
[PlyCount "76"]
[EventDate "2022.03.25"]
[EventType "team-tourn"]
[EventRounds "7"]
[EventCountry "GER"]
[SourceTitle "playchess.com"]
[Source "ChessBase"]
[SourceQuality "1"]
[TimeControl "40/5400+30:1800+30"]

1. e4 {[%emt 0:00:02]} e5 {[%emt 0:00:05]} 2. Nf3 {[%emt 0:00:04]} Nc6 {[%emt 0:00:04]} 3. Bc4 {[%emt 0:00:13]} Bc5 {[%emt 0:00:10]} 4. b4 {[%emt 0:00:07]} Bxb4 {[%emt 0:00:23]} 5. c3 {[%emt 0:00:07]} Be7 {[%emt 0:01:02]} 6. d4 {[%emt 0:00:22]} Na5 {[%emt 0:00:28]} 7. Nxe5 {[%emt 0:00:36]} Nxc4 {[%emt 0:00:22]} 8. Nxc4 {[%emt 0:00:26]} d5 {[%emt 0:00:22]} 9. exd5 {[%emt 0:00:51]} Qxd5 {[%emt 0:00:12]} 10. Ne3 {[%emt 0:01:09]} Qc6 {[%emt 0:01:17]} 11. Nd2 {[%emt 0:01:35]} Nf6 {[%emt 0:03:58]} 12. Bb2 {[%emt 0:01:15]} O-O {[%emt 0:03:02]} 13. O-O {[%emt 0:00:28]} b6 {[%emt 0:03:31]} 14. Qf3 {[%emt 0:00:23]} Bb7 {[%emt 0:01:37]} 15. Qg3 {[%emt 0:01:36]} Bd6 {[%emt 0:03:30]} 16. Qf3 {[%emt 0:02:48]} Ne4 {[%emt 0:04:07]} 17. Nxe4 {[%emt 0:02:22]} Qxe4 {[%emt 0:00:06]} 18. d5 {[%emt 0:01:51]} Qxf3 {[%emt 0:00:19]} 19. gxf3 {[%emt 0:00:34]} Rfe8 {[%emt 0:03:41]} 20. Kh1 {[%emt 0:00:48]} Rad8 {[%emt 0:01:53]} 21. Rg1 {[%emt 0:00:37]} g6 {[%emt 0:01:46]} 22. c4 {[%emt 0:01:14]} Be5 {[%emt 0:06:45]} 23. Bxe5 {[%emt 0:00:42]} Rxe5 {[%emt 0:00:44]} 24. Rg4 {[%emt 0:01:13]} Kf8 {[%emt 0:06:01]} 25. Rh4 {[%emt 0:01:13]} h5 {[%emt 0:02:53]} 26. Rb1 {[%emt 0:01:48]} c6 {[%emt 0:01:45]} 27. c5 {[%emt 0:01:37]} cxd5 {[%emt 0:02:45]} 28. cxb6 {[%emt 0:01:51]} axb6 {[%emt 0:06:09]} 29. Rxb6 {[%emt 0:01:16]} d4 {[%emt 0:05:33]} 30. Rxb7 {[%emt 0:00:24]} dxe3 {[%emt 0:01:02]} 31. fxe3 {[%emt 0:00:26]} Rxe3 {[%emt 0:01:02]} 32. Rf4 {[%emt 0:00:27]} f5 {[%emt 0:01:38]} 33. Ra7 {[%emt 0:01:00]} Re2 {[%emt 0:00:42]} 34. Rd4 {[%emt 0:02:06]} Rxd4 {[%emt 0:00:15]} 35. Ra8+ {[%emt 0:00:10]} Kg7 {[%emt 0:00:20]} 36. Ra7+ {[%emt 0:00:56]} Kh6 {[%emt 0:00:12]} 37. Rh7+ {[%emt 0:00:18]} Kxh7 {[%emt 0:00:11]} 38. a4 {[%emt 0:00:07]} Rd1# {[%emt 0:00:13]} 0-1

[Event "DVM U12 2021-22"]
[Site "Naumburg"]
[Date "2022.03.27"]
[Round "5"]
[White "Schriefer, Leo Hans"]
[Black "Schimann, Kirill"]
[Result "0-1"]
[ECO "B13"]
[WhiteElo "1037"]
[BlackElo "1344"]
[Annotator "NA"]
[PlyCount "72"]
[EventDate "2022.03.25"]
[EventType "team-tourn"]
[EventRounds "7"]
[EventCountry "GER"]
[SourceTitle "playchess.com"]
[Source "ChessBase"]
[SourceQuality "1"]
[TimeControl "40/5400+30:1800+30"]

1. e4 {[%emt 0:00:01]} c6 {[%emt 0:00:06]} 2. d4 {[%emt 0:00:05]} d5 {[%emt 0:00:04]} 3. exd5 {[%emt 0:00:02]} cxd5 {[%emt 0:00:08]} 4. Bd3 {[%emt 0:00:05]} Nc6 {[%emt 0:00:09]} 5. c3 {[%emt 0:00:27]} Nf6 {[%emt 0:00:24]} 6. h3 {[%emt 0:00:09]} e6 {[%emt 0:00:40]} 7. Nf3 {[%emt 0:00:16]} Bd6 {[%emt 0:02:05]} 8. Bg5 {[%emt 0:00:19]} h6 {[%emt 0:00:58]} 9. Bxf6 {[%emt 0:00:34]} Qxf6 {[%emt 0:00:49]} 10. O-O {[%emt 0:01:07]} O-O {[%emt 0:01:03]} 11. Nbd2 {[%emt 0:00:49]} a6 {[%emt 0:02:28]} 12. Re1 {[%emt 0:01:21]} Re8 {[%emt 0:01:59]} 13. Rc1 {[%emt 0:01:16]} e5 {[%emt 0:02:11]} 14. dxe5 {[%emt 0:00:45]} Nxe5 {[%emt 0:00:42]} 15. Nxe5 {[%emt 0:00:20]} Rxe5 {[%emt 0:00:58]} 16. Nf3 {[%emt 0:00:55]} Rxe1+ {[%emt 0:00:59]} 17. Nxe1 {[%emt 0:02:07]} Be6 {[%emt 0:03:21]} 18. a3 {[%emt 0:02:14]} Rc8 {[%emt 0:04:25]} 19. Nf3 {[%emt 0:02:01]} Bf4 {[%emt 0:01:30]} 20. Rc2 {[%emt 0:01:29]} Bd6 {[%emt 0:00:32]} 21. Nd4 {[%emt 0:01:13]} Be5 {[%emt 0:04:46]} 22. Re2 {[%emt 0:02:30]} Bxd4 {[%emt 0:00:48]} 23. cxd4 {[%emt 0:00:22]} Qg5 {[%emt 0:02:52]} 24. Re3 {[%emt 0:03:10]} Bxh3 {[%emt 0:00:44]} 25. Qf3 {[%emt 0:07:41]} Be6 {[%emt 0:18:17]} 26. g3 {[%emt 0:05:25]} Bg4 {[%emt 0:06:34]} 27. Qg2 {[%emt 0:06:41]} Rc1+ {[%emt 0:01:56]} 28. Bf1 {[%emt 0:00:20]} Qh5 {[%emt 0:01:49]} 29. Re5 {[%emt 0:00:22]} g5 {[%emt 0:03:57]} 30. Rxd5 {[%emt 0:01:44]} Bh3 {[%emt 0:00:50]} 31. Rd8+ {[%emt 0:00:28]} Kg7 {[%emt 0:00:13]} 32. g4 {[%emt 0:00:54]} Qh4 {[%emt 0:03:35]} 33. Qg3 {[%emt 0:00:41]} Rxf1+ {[%emt 0:00:30]} 34. Kh2 {[%emt 0:00:13]} Rxf2+ {[%emt 0:00:29]} 35. Qxf2 {[%emt 0:00:22]} Qxf2+ {[%emt 0:00:10]} 36. Kh1 {[%emt 0:00:04]} Qg2# 0-1

[Event "DVM U12 2021-22"]
[Site "Naumburg"]
[Date "2022.03.27"]
[Round "5"]
[White "Könnecke, Maximilian"]
[Black "Savchenko, Maxim"]
[Result "0-1"]
[ECO "A40"]
[WhiteElo "929"]
[BlackElo "1141"]
[Annotator "NA"]
[PlyCount "86"]
[EventDate "2022.03.25"]
[EventType "team-tourn"]
[EventRounds "7"]
[EventCountry "GER"]
[SourceTitle "playchess.com"]
[Source "ChessBase"]
[SourceQuality "1"]
[TimeControl "40/5400+30:1800+30"]

1. d4 {[%emt 0:00:04]} e5 {[%emt 0:00:09]} 2. dxe5 {[%emt 0:00:10]} Nc6 {[%emt 0:00:08]} 3. f4 {[%emt 0:00:53]} f6 {[%emt 0:02:24]} 4. exf6 {[%emt 0:01:39]} Nxf6 {[%emt 0:00:18]} 5. e3 {[%emt 0:01:04]} d5 {[%emt 0:00:26]} 6. Bb5 {[%emt 0:02:31]} Bd7 {[%emt 0:02:05]} 7. Nf3 {[%emt 0:01:23]} Bc5 {[%emt 0:04:12]} 8. c3 {[%emt 0:02:13]} a6 {[%emt 0:02:03]} 9. Bxc6 {[%emt 0:02:12]} Bxc6 {[%emt 0:00:16]} 10. Ne5 {[%emt 0:02:50]} Qe7 {[%emt 0:04:25]} 11. Qf3 {[%emt 0:03:48]} g6 {[%emt 0:09:13]} 12. Nxc6 {[%emt 0:00:48]} bxc6 {[%emt 0:00:53]} 13. O-O {[%emt 0:03:33]} O-O {[%emt 0:00:54]} 14. b4 {[%emt 0:01:59]} Bb6 {[%emt 0:00:48]} 15. Re1 {[%emt 0:01:21]} Qe6 {[%emt 0:01:01]} 16. Nd2 {[%emt 0:10:18]} Rfe8 {[%emt 0:03:20]} 17. h3 {[%emt 0:05:48]} d4 {[%emt 0:08:39]} 18. cxd4 {[%emt 0:01:59]} Bxd4 {[%emt 0:00:12]} 19. Rb1 {[%emt 0:00:07]} Rad8 {[%emt 0:05:08]} 20. Nb3 {[%emt 0:02:46]} Bc3 {[%emt 0:05:07]} 21. Nc5 {[%emt 0:05:53]} Qxa2 {[%emt 0:01:28]} 22. Bd2 {[%emt 0:06:27]} Bxd2 {[%emt 0:01:08]} 23. Red1 {[%emt 0:04:25]} Bxe3+ {[%emt 0:01:40]} 24. Kh2 {[%emt 0:00:45]} Rxd1 {[%emt 0:02:39]} 25. Rxd1 {[%emt 0:00:12]} Bxc5 {[%emt 0:00:24]} 26. Qxc6 {[%emt 0:00:17]} Be7 {[%emt 0:01:42]} 27. Qxc7 {[%emt 0:02:07]} Qa4 {[%emt 0:04:24]} 28. Qc4+ {[%emt 0:01:23]} Kf8 {[%emt 0:00:32]} 29. Re1 {[%emt 0:04:32]} Qxb4 {[%emt 0:03:30]} 30. Qe2 {[%emt 0:06:29]} Qxf4+ {[%emt 0:03:21]} 31. g3 {[%emt 0:01:38]} Qb4 {[%emt 0:01:51]} 32. Qe3 {[%emt 0:02:43]} Bc5 {[%emt 0:03:43]} 33. Qh6+ {[%emt 0:00:38]} Kf7 {[%emt 0:01:06]} 34. Rf1 {[%emt 0:01:34]} Qb2+ {[%emt 0:00:44]} 35. Kh1 {[%emt 0:00:16]} Re2 {[%emt 0:00:45]} 36. Qxh7+ {[%emt 0:00:09]} Ke6 {[%emt 0:00:39]} 37. Rxf6+ {[%emt 0:01:41]} Qxf6 {[%emt 0:00:52]} 38. Qg8+ {[%emt 0:00:16]} Kf5 {[%emt 0:01:12]} 39. Qc8+ {[%emt 0:00:18]} Kg5 {[%emt 0:01:10]} 40. Qxc5+ {[%emt 0:00:37]} Kh6 {[%emt 0:01:43]} 41. Qc1+ {[%emt 0:31:37]} g5 {[%emt 0:30:42]} 42. h4 {[%emt 0:01:43]} Qf3+ {[%emt 0:00:20]} 43. Kg1 {[%emt 0:00:21]} Qg2# 0-1

[Event "DVM U12 2021-22"]
[Site "Naumburg"]
[Date "2022.03.28"]
[Round "6"]
[White "Graham, David B"]
[Black "Smith, Tobias"]
[Result "0-1"]
[ECO "B39"]
[WhiteElo "2128"]
[BlackElo "1571"]
[Annotator "ChessBase"]
[PlyCount "144"]
[EventDate "2022.03.25"]
[EventType "team-tourn"]
[EventRounds "7"]
[EventCountry "GER"]
[SourceTitle "playchess.com"]
[Source "ChessBase"]
[SourceQuality "1"]
[TimeControl "40/5400+30:1800+30"]

1. e4 {[%emt 0:00:03]} c5 {[%emt 0:00:07]} 2. Nf3 {[%emt 0:00:03]} g6 {[%emt 0:00:09]} 3. d4 {[%emt 0:00:02]} cxd4 {[%emt 0:00:07]} 4. Nxd4 {[%emt 0:00:07]} Nc6 {[%emt 0:00:09]} 5. c4 {[%emt 0:00:08]} Bg7 {[%emt 0:00:47]} 6. Be3 {[%emt 0:00:06]} Nf6 {[%emt 0:00:08]} 7. Nc3 {[%emt 0:00:11]} Ng4 {[%emt 0:01:12]} 8. Qxg4 {[%emt 0:00:09]} Nxd4 {[%emt 0:00:07]} 9. Qd1 {[%emt 0:00:02]} e5 {[%emt 0:00:10]} 10. Bd3 {[%emt 0:00:24]} d6 {[%emt 0:02:52]} 11. O-O {[%emt 0:00:45]} O-O {[%emt 0:00:27]} 12. Qd2 {[%emt 0:03:46]} Qa5 {[%emt 0:06:59]} 13. Nd5 {[%emt 0:06:09]} Qxd2 {[%emt 0:16:45]} 14. Bxd2 {[%emt 0:00:22]} Be6 {[%emt 0:06:53]} 15. Rac1 {[%emt 0:06:18]} Kh8 {[%emt 0:05:06]} 16. Kh1 {[%emt 0:08:56]} h5 {[%emt 0:06:57]} 17. Bc3 {[%emt 0:03:02]} Rac8 {[%emt 0:05:22]} 18. Bxd4 {[%emt 0:01:42]} exd4 {[%emt 0:00:06]} 19. Rfd1 {[%emt 0:02:14]} h4 {[%emt 0:02:45]} 20. h3 {[%emt 0:02:11]} g5 {[%emt 0:07:05]} 21. Be2 {[%emt 0:01:07]} Be5 {[%emt 0:01:28]} 22. Bg4 {[%emt 0:08:47]} Kg7 {[%emt 0:03:36]} 23. b4 {[%emt 0:14:57]} Bxd5 {[%emt 0:11:55]} 24. cxd5 {[%emt 0:07:55]} Rc3 {[%emt 0:01:15]} 25. Bd7 {[%emt 0:13:52]} Bf4 {[%emt 0:05:19]} 26. Rxc3 {[%emt 0:02:02]} dxc3 {[%emt 0:00:15]} 27. Ba4 {[%emt 0:00:24]} Rc8 {[%emt 0:01:22]} 28. Bc2 {[%emt 0:00:16]} Re8 {[%emt 0:02:11]} 29. Rd4 {[%emt 0:02:30]} b5 {[%emt 0:01:38]} 30. Rd1 {[%emt 0:02:12]} Bd2 {[%emt 0:01:15]} 31. Kg1 {[%emt 0:01:23]} Kf6 {[%emt 0:00:57]} 32. Kf1 {[%emt 0:01:23]} a5 {[%emt 0:01:55]} 33. bxa5 {[%emt 0:03:35]} Ra8 {[%emt 0:00:50]} 34. Ke2 {[%emt 0:00:42]} Rxa5 {[%emt 0:00:42]} 35. Bb3 {[%emt 0:00:23]} Ke5 {[%emt 0:02:48]} 36. Kd3 {[%emt 0:05:03]} Kf4 {[%emt 0:02:02]} 37. Rg1 {[%emt 0:01:07]} Ra7 {[%emt 0:00:28]} 38. g3+ {[%emt 0:01:38]} hxg3 {[%emt 0:00:38]} 39. Rxg3 {[%emt 0:00:11]} f6 {[%emt 0:00:24]} 40. Bd1 {[%emt 0:01:40]} Ke5 {[%emt 0:02:05]} 41. Bb3 {[%emt 0:06:13]} Rh7 {[%emt 0:05:20]} 42. Bc2 {[%emt 0:02:35]} Rh4 {[%emt 0:07:38]} 43. Ke2 {[%emt 0:03:10]} Kd4 {[%emt 0:05:21]} 44. Rf3 {[%emt 0:04:42]} Bf4 {[%emt 0:02:58]} 45. Bd3 {[%emt 0:03:47]} Be5 {[%emt 0:02:22]} 46. Re3 {[%emt 0:03:01]} Kc5 {[%emt 0:02:33]} 47. a3 {[%emt 0:05:35]} Rh8 {[%emt 0:02:38]} 48. Kf3 {[%emt 0:03:27]} Bd4 {[%emt 0:02:36]} 49. Re1 {[%emt 0:00:14]} Rxh3+ {[%emt 0:00:11]} 50. Ke2 {[%emt 0:00:06]} Rh2 {[%emt 0:00:33]} 51. Rb1 {[%emt 0:00:55]} Rxf2+ {[%emt 0:00:59]} 52. Ke1 {[%emt 0:00:20]} Rb2 {[%emt 0:00:23]} 53. Rxb2 {[%emt 0:00:40]} cxb2 {[%emt 0:00:05]} 54. Ke2 {[%emt 0:01:24]} g4 {[%emt 0:01:49]} 55. Kf1 {[%emt 0:00:19]} g3 {[%emt 0:00:09]} 56. Kg2 {[%emt 0:00:15]} Bf2 {[%emt 0:00:09]} 57. Bb1 {[%emt 0:00:32]} Kc4 {[%emt 0:00:33]} 58. Ba2+ {[%emt 0:00:23]} Kc3 {[%emt 0:00:16]} 59. Bb1 {[%emt 0:00:16]} Kd2 {[%emt 0:01:11]} 60. Ba2 {[%emt 0:00:17]} Kc1 {[%emt 0:00:11]} 61. e5 {[%emt 0:00:55]} fxe5 {[%emt 0:00:11]} 62. Kf3 {[%emt 0:00:06]} b1=Q {[%emt 0:00:19]} 63. Bxb1 {[%emt 0:00:12]} Kxb1 {[%emt 0:00:04]} 64. a4 bxa4 {[%emt 0:00:07]} 65. Kg2 {[%emt 0:00:33]} a3 {[%emt 0:00:13]} 66. Kh3 {[%emt 0:00:04]} a2 {[%emt 0:00:14]} 67. Kg2 {[%emt 0:00:02]} a1=Q {[%emt 0:00:17]} 68. Kf3 {[%emt 0:00:52]} Qc3+ {[%emt 0:00:18]} 69. Kg4 {[%emt 0:00:28]} g2 {[%emt 0:00:14]} 70. Kf5 {[%emt 0:00:12]} g1=Q {[%emt 0:00:10]} 71. Ke6 {[%emt 0:00:09]} Qc8+ {[%emt 0:00:05]} 72. Ke7 {[%emt 0:00:31]} Bh4+ {[%emt 0:00:18]} 0-1